[Event "22nd Hoogeveen Open 2018"]
[Site "Hoogeveen"]
[Date "2018.10.21"]
[Round "2"]
[White "Den Hartog, Marijn"]
[Black "Achuthan, Dylan"]
[Result "1-0"]
[ECO "E60"]
[WhiteElo "2296"]
[BlackElo "1751"]
[Annotator "NA"]
[PlyCount "51"]
[EventDate "2018.10.20"]
[EventType "swiss"]
[EventCountry "NED"]
[SourceTitle "playchess.com"]
[Source "ChessBase"]
[SourceQuality "1"]
[TimeControl "40/5400+30:1800+30"]

{[%evp 8,51,19,41,24,32767,24,32767,32767,32767,32767,32767,66,32767,62,67,47,47,32767,32767,32767,32767,32767,81,126,101,32767,59,103,3,21,16,-3,-40,46,33,32767,69,32767,32767,32767,32767,32767,275,533,700]} 1. d4 {[%emt 0:00:00]} Nf6 {[%emt 0:00:00]} 2. c4 {[%emt 0:00:00]} g6 {[%emt 0:00:22]} 3. g3 {[%emt 0:00:06]} Bg7 {[%emt 0:00:16]} 4. Bg2 {[%emt 0:00:04]} c5 {[%emt 0:00:42]} 5. d5 {[%emt 0:01:15]} d6 {[%emt 0:00:47] LiveBook: 118 Games} 6. e4 {[%emt 0:01:31]} O-O {[%emt 0:02:11]} 7. Ne2 {[%emt 0:00:56]} Nbd7 {[%emt 0:01:32]} 8. O-O {[%emt 0:04:56]} Rb8 {[%emt 0:02:16] E60: King's Indian: Unusual lines and Fianchetto Variation without Nc3} 9. a4 {[%emt 0:09:03]} a6 {[%emt 0:04:42]} 10. Na3 $146 {[%emt 0:04:27]} ({Predecessor:} 10. Nbc3 Ne8 11. Qc2 Nc7 {1-0 (34) Burmakin,V (2579)-La Manna,A (2193) Arco 2012}) 10... Re8 {[%emt 0:12:20]} 11. Nc3 {[%emt 0:12:33]} Nf8 {[%emt 0:05:54]} 12. Qd3 {[%emt 0:17:42]} Qc7 {[%emt 0:09:53]} 13. h3 {[%emt 0:09:59]} Bd7 {[%emt 0:01:43]} 14. Bd2 {[%emt 0:03:44]} Rbd8 {[%emt 0:00:49]} 15. f4 {[%emt 0:01:47]} h5 {[%emt 0:05:59]} 16. Rae1 {[%emt 0:03:48]} e6 {[%emt 0:03:43]} 17. e5 {[%emt 0:00:34]} N6h7 {[%emt 0:01:10]} 18. exd6 {[%emt 0:00:54]} (18. Qf3 $16) 18... Qxd6 {[%emt 0:00:35]} 19. Ne4 {[%emt 0:00:03]} Qb6 {[%emt 0:01:16]} 20. Kh2 {[%emt 0:05:04]} exd5 {[%emt 0:01:29]} (20... Bxa4 $15 21. Be3 exd5 22. cxd5 Bd4) 21. cxd5 {[%emt 0:00:09]} Bxa4 {[%emt 0:01:36]} 22. f5 {[%emt 0:08:43]} Bb3 {[%emt 0:04:18]} 23. d6 {[%emt 0:04:31]} Nd7 {[%emt 0:02:05]} 24. fxg6 {[%emt 0:01:53]} fxg6 {[%emt 0:00:22]} 25. Ng5 {[%emt 0:02:29]} Ne5 $18 {[%emt 0:00:52]} (25... Nxg5 {keeps fighting.} 26. Bxg5 Kh7) 26. Bd5+ {[%emt 0:00:13]} 1-0

[Event "22nd Hoogeveen Open 2018"]
[Site "Hoogeveen"]
[Date "2018.10.21"]
[Round "2"]
[White "Ojas Kulkarni"]
[Black "Thrish Karthik"]
[Result "1-0"]
[ECO "E61"]
[WhiteElo "2254"]
[BlackElo "2116"]
[Annotator "NA"]
[PlyCount "55"]
[EventDate "2018.10.20"]
[EventType "swiss"]
[EventCountry "NED"]
[SourceTitle "playchess.com"]
[Source "ChessBase"]
[SourceQuality "1"]
[TimeControl "40/5400+30:1800+30"]

1. c4 {[%emt 0:00:00]} d6 {[%emt 0:00:00]} 2. g3 {[%emt 0:00:11]} g6 {[%emt 0:00:58]} 3. Bg2 {[%emt 0:00:11]} Bg7 {[%emt 0:00:05]} 4. Nc3 {[%emt 0:00:21]} Nf6 {[%emt 0:00:46]} 5. e3 {[%emt 0:00:27]} O-O {[%emt 0:01:31]} 6. Nge2 {[%emt 0:00:06]} c6 {[%emt 0:03:04]} 7. d4 {[%emt 0:06:21]} Nbd7 {[%emt 0:08:06]} 8. b3 {[%emt 0:01:59] LiveBook: 5 Games E61: King's Indian: Early deviations for White, including Smyslov System} Qc7 {[%emt 0:06:34]} (8... Rb8 9. O-O Re8 10. a4 a5 11. Ba3 Nf8 12. Qd2 Ne6 13. Rad1 Bd7 14. h3 b5 15. cxb5 cxb5 16. Nxb5 Bxb5 17. axb5 Rxb5 {½-½ (82) Wang,Y (2736)-Nguyen,N (2567) Beijing 2008}) 9. Bb2 {[%emt 0:02:10]} Rd8 {[%emt 0:03:50]} 10. O-O {[%emt 0:04:04]} e5 {[%emt 0:06:41]} 11. d5 {[%emt 0:05:52]} c5 $146 {[%emt 0:04:35]} (11... Nc5 $11 {remains equal.}) ({Predecessor:} 11... a6 12. Qd2 c5 13. a4 Re8 14. e4 Nf8 15. h3 Re7 16. f4 exf4 17. gxf4 Ne8 {½-½ (44) Shagbazyan,T (2406)-Obolentseva,A (2283) Voronezh 2017}) 12. Qd2 {[%emt 0:02:22]} Nf8 {[%emt 0:02:54]} 13. e4 {[%emt 0:04:00]} h5 {[%emt 0:05:49]} 14. f4 {[%emt 0:02:20]} exf4 {[%emt 0:11:21]} 15. gxf4 {[%emt 0:00:46]} Qe7 {[%emt 0:01:20]} 16. Rae1 {[%emt 0:11:32]} h4 {[%emt 0:09:11]} 17. e5 {[%emt 0:24:36]} dxe5 {[%emt 0:05:31]} 18. fxe5 {[%emt 0:00:07]} Ng4 {[%emt 0:02:34]} 19. Nf4 {[%emt 0:01:58]} Nxe5 {[%emt 0:06:36]} 20. Nd3 {[%emt 0:04:21]} h3 {[%emt 0:02:49]} 21. Nxe5 {[%emt 0:00:24]} Bxe5 {[%emt 0:04:06]} 22. Rxe5 {[%emt 0:00:30]} Qxe5 {[%emt 0:04:06]} 23. Ne4 {[%emt 0:00:13]} hxg2 {[%emt 0:02:54]} 24. Nf6+ {[%emt 0:00:39]} Kg7 {[%emt 0:00:56]} 25. Bxe5 {[%emt 0:08:15]} gxf1=Q+ {[%emt 0:00:27]} 26. Kxf1 {[%emt 0:00:06]} Nh7 {[%emt 0:03:07]} 27. Qf4 {[%emt 0:00:27]} (27. Nxh7+ $142 f6 28. Bxf6+ Kxh7 29. Bxd8 Bf5 30. Qe3 Bd3+ 31. Kg2 Bf5 32. Bf6) 27... Bf5 {[%emt 0:01:18]} 28. Nxh7+ $18 {[%emt 0:00:14]} (28. Qh4 $142 Ng5 29. d6 Rxd6 30. Ne8+ Kf8 31. Nxd6 Bd3+ 32. Kf2 Ne4+ 33. Nxe4 Bxe4 34. Qh8+ Ke7 35. Qxa8) 1-0

[Event "22nd Hoogeveen Open 2018"]
[Site "Hoogeveen"]
[Date "2018.10.21"]
[Round "2"]
[White "Murray, David"]
[Black "Mijnheer, Peter"]
[Result "1-0"]
[ECO "C96"]
[WhiteElo "2222"]
[BlackElo "2092"]
[Annotator "NA"]
[PlyCount "89"]
[EventDate "2018.10.20"]
[EventType "swiss"]
[EventCountry "NED"]
[SourceTitle "playchess.com"]
[Source "ChessBase"]
[SourceQuality "1"]
[TimeControl "40/5400+30:1800+30"]

1. e4 {[%emt 0:00:00]} e5 {[%emt 0:00:00]} 2. Nf3 {[%emt 0:00:00]} Nc6 {[%emt 0:00:00]} 3. Bb5 {[%emt 0:00:06]} a6 {[%emt 0:00:00]} 4. Ba4 {[%emt 0:00:04]} Nf6 {[%emt 0:00:00]} 5. O-O {[%emt 0:00:12]} Be7 {[%emt 0:00:03]} 6. Re1 {[%emt 0:00:31]} b5 {[%emt 0:00:08]} 7. Bb3 {[%emt 0:00:05]} d6 {[%emt 0:00:17]} 8. c3 {[%emt 0:01:10]} O-O {[%emt 0:00:06]} 9. h3 {[%emt 0:01:00] LiveBook: 20151 Games} Na5 {[%emt 0:00:08]} 10. Bc2 {[%emt 0:00:28]} c5 {[%emt 0:00:04]} 11. d4 {[%emt 0:01:23]} Nd7 {[%emt 0:00:13]} 12. a4 {[%emt 0:03:22]} b4 {[%emt 0:15:35] C96: Closed Ruy Lopez: Chigorin Defence: 11 d4, replies other than 11...Qc7} 13. Nbd2 {[%emt 0:01:36]} Rb8 {[%emt 0:01:12] [#]} 14. Bd3 $146 {[%emt 0:04:28]} ({Predecessor:} 14. Nf1 b3 15. Bd3 exd4 16. cxd4 c4 17. Be2 c3 18. Ng3 Nf6 19. Bd3 Nc6 20. d5 {0-1 (37) Quesada Perez,Y (2627)-Caruana,F (2811) chess.com INT 2018}) 14... bxc3 {[%emt 0:07:01]} 15. bxc3 {[%emt 0:00:17]} cxd4 {[%emt 0:00:15]} 16. cxd4 {[%emt 0:01:02]} exd4 {[%emt 0:00:37]} 17. Nxd4 {[%emt 0:08:18]} Ne5 {[%emt 0:02:56]} 18. Bf1 {[%emt 0:03:52]} Bf6 {[%emt 0:01:36]} 19. Ba3 {[%emt 0:02:30]} Nd3 {[%emt 0:26:12]} 20. Bxd3 {[%emt 0:01:40]} Bxd4 {[%emt 0:00:07]} 21. Rb1 {[%emt 0:08:57]} Rxb1 {[%emt 0:00:36]} 22. Bxb1 {[%emt 0:01:16]} Qb6 {[%emt 0:07:12]} 23. Qe2 {[%emt 0:03:27]} Be6 {[%emt 0:06:38]} 24. Bd3 {[%emt 0:03:52]} Rd8 {[%emt 0:10:35]} 25. Rb1 {[%emt 0:03:56]} Qa7 {[%emt 0:01:26]} 26. Nf3 {[%emt 0:04:16]} Nc6 {[%emt 0:06:22]} 27. Kf1 {[%emt 0:16:04]} (27. Nxd4 $16 Qxd4 28. Qc2 (28. Bxa6 Qxa4 29. Bc1 d5 $14)) 27... a5 {[%emt 0:01:38]} 28. Bb5 {[%emt 0:05:28]} Ne5 {[%emt 0:00:23]} 29. Nxd4 {[%emt 0:05:24]} Qxd4 {[%emt 0:00:04]} 30. Rd1 {[%emt 0:00:51]} Qc3 {[%emt 0:03:25]} 31. Rxd6 {[%emt 0:07:18]} Rxd6 {[%emt 0:06:39]} 32. Bxd6 {[%emt 0:00:09]} Bc4 {[%emt 0:00:48]} 33. Bxc4 {[%emt 0:00:26]} Qc1+ {[%emt 0:00:07]} 34. Qe1 {[%emt 0:00:12]} Qxc4+ {[%emt 0:00:09]} 35. Kg1 {[%emt 0:01:01]} Nd3 {[%emt 0:00:13]} 36. Qxa5 {[%emt 0:02:49]} h6 {[%emt 0:00:08]} 37. Qa8+ {[%emt 0:01:20]} Kh7 {[%emt 0:00:03]} 38. Qd5 {[%emt 0:00:48]} Qc2 {[%emt 0:00:14]} 39. Qxf7 {[%emt 0:03:12]} Qd1+ {[%emt 0:01:18]} 40. Kh2 {[%emt 0:00:16]} Nxf2 {[%emt 0:00:34]} 41. Qf5+ {[%emt 0:32:15]} Kh8 {[%emt 0:30:59]} 42. e5 $18 {[%emt 0:02:13]} Qd4 {[%emt 0:04:00]} 43. Qf8+ {[%emt 0:00:58]} Kh7 {[%emt 0:00:00]} 44. e6 {[%emt 0:00:00]} Ne4 {[%emt 0:00:00]} 45. Qf5+ {[%emt 0:00:00]} 1-0

[Event "22nd Hoogeveen Open 2018"]
[Site "Hoogeveen"]
[Date "2018.10.21"]
[Round "2"]
[White "Wedda, Dries"]
[Black "Shakhverdian, William"]
[Result "1-0"]
[ECO "A65"]
[WhiteElo "2216"]
[BlackElo "1903"]
[Annotator "NA"]
[PlyCount "93"]
[EventDate "2018.10.20"]
[EventType "swiss"]
[EventCountry "NED"]
[SourceTitle "playchess.com"]
[Source "ChessBase"]
[SourceQuality "1"]
[TimeControl "40/5400+30:1800+30"]

1. d4 {[%emt 0:00:00]} Nf6 {[%emt 0:00:00]} 2. c4 {[%emt 0:00:00]} g6 {[%emt 0:00:00]} 3. Nc3 {[%emt 0:00:00]} Bg7 {[%emt 0:00:00]} 4. e4 {[%emt 0:00:00]} d6 {[%emt 0:00:05]} 5. Nge2 {[%emt 0:00:00]} O-O {[%emt 0:00:29]} 6. Ng3 {[%emt 0:00:00]} c5 {[%emt 0:00:15]} 7. d5 {[%emt 0:00:00]} e6 {[%emt 0:01:38]} 8. Be2 {[%emt 0:00:26]} exd5 {[%emt 0:00:07]} 9. cxd5 {[%emt 0:00:05]} a6 {[%emt 0:00:31]} 10. a4 {[%emt 0:00:08]} h5 {[%emt 0:00:18] A65: Modern Benoni: 6 e4} 11. Bg5 {[%emt 0:07:48] LiveBook: 32 Partien} Qc7 {[%emt 0:04:07]} 12. Qd2 {[%emt 0:04:47]} Nbd7 {[%emt 0:02:00]} 13. O-O {[%emt 0:04:42]} Nh7 {[%emt 0:03:15]} (13... Rb8 14. f4 Nh7 15. Bh4 c4 16. Kh1 b5 17. axb5 axb5 18. b4 {1-0 (36) Le,Q (2736)-Sivuk,V (2526) Hanoi 2018}) 14. Bh6 {[%emt 0:03:42]} h4 {[%emt 0:00:29]} 15. Bxg7 {[%emt 0:00:22]} Kxg7 {[%emt 0:00:09]} 16. Nh1 {[%emt 0:00:11]} h3 {[%emt 0:24:08]} (16... g5 $142) {Predecessor:} 17. g3 $146 {[%emt 0:10:39]} Ne5 {[%emt 0:06:06]} 18. f4 {[%emt 0:10:19]} Ng4 {[%emt 0:01:17]} 19. Bxg4 {[%emt 0:04:00]} Bxg4 {[%emt 0:00:07] 1-0 (33) Martinez Martin,D (2407)-Kuhne,D (2131) Caleta 2015} 20. f5 {[%emt 0:01:55]} gxf5 {[%emt 0:07:46]} 21. exf5 {[%emt 0:02:36]} f6 {[%emt 0:02:28]} 22. Rf4 {[%emt 0:10:08]} Bh5 {[%emt 0:01:08]} 23. Rh4 $2 {[%emt 0:00:10]} (23. Nf2 $18) 23... Ng5 {[%emt 0:03:33]} 24. Rf1 {[%emt 0:00:47]} Rh8 $1 {[%emt 0:03:13]} 25. Rhf4 {[%emt 0:15:57]} Rae8 $15 {[%emt 0:02:31]} 26. g4 {[%emt 0:04:22]} Bf7 {[%emt 0:01:18]} 27. Ng3 {[%emt 0:00:17]} Re5 {[%emt 0:03:51]} 28. Nge4 {[%emt 0:07:14]} Nxe4 {[%emt 0:03:20]} 29. Rxe4 {[%emt 0:00:17]} Rxe4 {[%emt 0:10:51]} 30. Nxe4 {[%emt 0:00:01]} Rh4 {[%emt 0:11:09]} 31. Nxf6 {[%emt 0:01:47]} Kxf6 {[%emt 0:01:24]} 32. Qc3+ {[%emt 0:00:01]} Ke7 {[%emt 0:00:32]} 33. Qe1+ {[%emt 0:00:22]} Kf8 {[%emt 0:00:22]} 34. Qxh4 {[%emt 0:00:06]} Bxd5 {[%emt 0:01:07]} 35. Qh8+ {[%emt 0:00:11]} Bg8 {[%emt 0:00:21]} 36. Re1 {[%emt 0:04:02]} Qc6 {[%emt 0:03:32]} 37. Qf6+ {[%emt 0:05:00]} Bf7 {[%emt 0:00:07]} 38. Qh8+ {[%emt 0:00:03]} Bg8 {[%emt 0:00:07]} 39. Qh6+ {[%emt 0:01:12]} Kf7 {[%emt 0:00:07]} 40. Qxh3 {[%emt 0:00:22]} Qxa4 {[%emt 0:00:09]} 41. Qh5+ {[%emt 0:31:13]} Kf8 {[%emt 0:30:20]} 42. Qh6+ {[%emt 0:00:58]} Kf7 {[%emt 0:00:09]} 43. Qg6+ {[%emt 0:00:09]} Kf8 {[%emt 0:00:07]} 44. Qxd6+ {[%emt 0:00:19]} Kg7 {[%emt 0:01:15]} 45. Re7+ {[%emt 0:00:10]} Bf7 {[%emt 0:00:09]} 46. Qg6+ {[%emt 0:00:06]} Kh8 {[%emt 0:00:09]} 47. Qf6+ {[%emt 0:00:05]} 1-0

[Event "22nd Hoogeveen Open 2018"]
[Site "Hoogeveen"]
[Date "2018.10.21"]
[Round "2"]
[White "Li, Henry"]
[Black "Bertholee, Rob"]
[Result "1-0"]
[ECO "B76"]
[WhiteElo "2207"]
[BlackElo "2334"]
[Annotator "NA"]
[PlyCount "51"]
[EventDate "2018.10.20"]
[EventType "swiss"]
[EventCountry "NED"]
[SourceTitle "playchess.com"]
[Source "ChessBase"]
[SourceQuality "1"]
[TimeControl "40/5400+30:1800+30"]

1. e4 {[%emt 0:00:00]} c5 {[%emt 0:00:00]} 2. Nf3 {[%emt 0:00:00]} Nc6 {[%emt 0:00:00]} 3. d4 {[%emt 0:00:08]} cxd4 {[%emt 0:00:00]} 4. Nxd4 {[%emt 0:00:07]} g6 {[%emt 0:00:00]} 5. Nc3 {[%emt 0:00:15]} Bg7 {[%emt 0:00:00]} 6. Be3 {[%emt 0:00:10]} Nf6 {[%emt 0:00:04]} 7. Bc4 {[%emt 0:00:16]} O-O {[%emt 0:00:06]} 8. Bb3 {[%emt 0:00:10]} d6 {[%emt 0:00:40]} 9. f3 {[%emt 0:00:11]} Bd7 {[%emt 0:00:09]} 10. h4 {[%emt 0:05:12]} h5 {[%emt 0:06:45]} 11. Qd2 {[%emt 0:04:45] LiveBook: 92 Games B76: Sicilian Dragon: Yugoslav Attack, 9 g4 and 9 0-0-0} Nxd4 {[%emt 0:05:50]} (11... Rc8 12. O-O-O Ne5 13. Bg5 Rc5 14. Kb1 Re8 15. g4 hxg4 16. f4 Nc4 17. Qd3 Na5 18. Bxf6 exf6 19. Bd5 Nc6 20. Nxc6 bxc6 21. Bxf7+ Kxf7 22. Qxd6 Rxc3 23. Qxd7+ Qxd7 24. Rxd7+ {½-½ (47) Vachier Lagrave,M (2789)-Nakamura,H (2781) London 2017}) 12. Bxd4 {[%emt 0:00:15]} b5 {[%emt 0:00:05]} 13. g4 {[%emt 0:10:59]} e5 {[%emt 0:10:52]} ({Better is} 13... e6 $14) 14. Be3 {[%emt 0:01:06]} hxg4 {[%emt 0:00:08] [#]} 15. Bg5 $1 {[%emt 0:12:43]} gxf3 {[%emt 0:06:23]} 16. h5 {[%emt 0:22:42]} gxh5 {[%emt 0:02:30]} 17. Rxh5 $146 {[%emt 0:04:06]} ({Predecessor:} 17. O-O-O Bg4 18. Rdg1 b4 19. Nd5 Nxe4 20. Rxg4 Nxd2 21. Bxd8 Rfxd8 22. Rxh5 f2 23. Ne3 Nxb3+ 24. axb3 f5 25. Rxf5 Rf8 {0-1 (25) Kraemer,M (2274)-Brendel,O (2389) Germany 2010}) 17... Qb6 {[%emt 0:23:21]} 18. Be3 {[%emt 0:06:13]} Qb7 $2 {[%emt 0:00:13]} ({Don't play} 18... Nxh5 $6 19. Bxb6 axb6 20. Qxd6 $16) (18... Qd8 19. Rh1 b4) 19. Rg5 {[%emt 0:02:17]} Rfc8 {[%emt 0:14:53]} (19... Nxe4 20. Nxe4 Qxe4 21. O-O-O $18) (19... Be6 $142 20. Qxd6 Qb8) 20. O-O-O {[%emt 0:14:20]} Rxc3 {[%emt 0:01:07]} 21. Rxg7+ {[%emt 0:00:51]} Kxg7 {[%emt 0:00:02]} 22. Bh6+ {[%emt 0:00:33]} Kh7 {[%emt 0:00:30]} 23. Bf8 {[%emt 0:03:54]} Rxf8 {[%emt 0:02:25]} 24. Rh1+ {[%emt 0:01:07]} Bh3 {[%emt 0:00:21]} 25. Rxh3+ {[%emt 0:00:17]} Kg7 {[%emt 0:00:06]} 26. Qg5# {[%emt 0:00:07]} 1-0

[Event "22nd Hoogeveen Open 2018"]
[Site "Hoogeveen"]
[Date "2018.10.21"]
[Round "2"]
[White "Giacomini, Hector"]
[Black "Verhoef, Pieter"]
[Result "1-0"]
[ECO "D04"]
[WhiteElo "2178"]
[BlackElo "2058"]
[Annotator "NA"]
[PlyCount "119"]
[EventDate "2018.10.20"]
[EventType "swiss"]
[EventCountry "NED"]
[SourceTitle "playchess.com"]
[Source "ChessBase"]
[SourceQuality "1"]
[TimeControl "40/5400+30:1800+30"]

1. Nf3 {[%emt 0:00:00]} c5 {[%emt 0:00:00]} 2. e3 {[%emt 0:00:00]} d5 {[%emt 0:00:00]} 3. d4 {[%emt 0:00:00]} Nf6 {[%emt 0:00:00]} 4. c3 {[%emt 0:00:40]} Qc7 {[%emt 0:00:00]} 5. Nbd2 {[%emt 0:00:26]} Nbd7 {[%emt 0:00:22]} 6. Bd3 {[%emt 0:01:37]} g6 {[%emt 0:00:14]} 7. O-O {[%emt 0:00:30]} Bg7 {[%emt 0:00:15]} 8. Re1 {[%emt 0:00:47]} O-O {[%emt 0:00:23]} 9. e4 {[%emt 0:01:06] D04: Colle System} (9. h3 b6 10. Rb1 c4 11. Bc2 Bb7 12. e4 dxe4 13. Nxe4 Nd5 14. Bg5 h6 15. Bd2 Qc6 16. Qc1 f5 {½-½ (66) Zuluaga Mancilla,C (2314)-Milos,G (2589) Mendes 2009}) 9... cxd4 {[%emt 0:00:58]} 10. cxd4 {[%emt 0:00:42]} dxe4 {[%emt 0:00:11]} 11. Nxe4 {[%emt 0:00:05]} Nxe4 {[%emt 0:00:23]} 12. Bxe4 {[%emt 0:00:24]} Nf6 {[%emt 0:06:06]} 13. Bd3 {[%emt 0:00:28]} b6 {[%emt 0:06:28]} 14. Bg5 $146 {[%emt 0:03:19]} ({Predecessor:} 14. Qe2 e6 15. Bg5 Nd5 16. Rac1 Qd6 {0-1 (44) Hernandez Bonilla,A (2044)-Sachdev,T (2400) Batumi 2018}) 14... Bb7 {[%emt 0:02:11]} 15. Qe2 {[%emt 0:02:46]} e6 {[%emt 0:06:42]} 16. Ba6 {[%emt 0:09:42]} h6 {[%emt 0:06:41]} 17. Rac1 {[%emt 0:07:11]} Qe7 {[%emt 0:03:12]} 18. Bh4 {[%emt 0:03:00]} Rac8 {[%emt 0:01:05]} 19. a3 {[%emt 0:15:21]} Rfd8 {[%emt 0:04:17]} 20. Rxc8 {[%emt 0:03:27]} Rxc8 {[%emt 0:00:07]} 21. d5 {[%emt 0:08:46]} g5 {[%emt 0:06:19]} 22. d6 {[%emt 0:00:26]} Bxa6 {[%emt 0:01:46]} 23. Qxa6 {[%emt 0:00:15]} Qd8 {[%emt 0:00:20]} 24. Bg3 {[%emt 0:00:24]} Rc5 {[%emt 0:19:32]} 25. Qxa7 {[%emt 0:01:20]} Nh5 {[%emt 0:08:28]} (25... Ne8 $1 $14) 26. Ne5 {[%emt 0:10:18]} Bxe5 {[%emt 0:08:27]} 27. Bxe5 {[%emt 0:00:06]} Nf4 {[%emt 0:00:14]} 28. Qe7 $18 {[%emt 0:08:40]} Qxe7 {[%emt 0:03:13]} 29. dxe7 {[%emt 0:00:04]} Rc8 {[%emt 0:00:07]} 30. Bxf4 {[%emt 0:14:00]} gxf4 {[%emt 0:00:06]} 31. Rd1 {[%emt 0:00:08]} Kg7 {[%emt 0:00:05]} 32. Kf1 {[%emt 0:00:19]} Kf6 {[%emt 0:01:12]} 33. Rd7 {[%emt 0:00:08]} Re8 {[%emt 0:00:48]} 34. Rb7 {[%emt 0:04:04]} Rxe7 {[%emt 0:00:11]} 35. Rxb6 {[%emt 0:00:03]} Rc7 {[%emt 0:00:34]} 36. Rd6 {[%emt 0:03:27]} Rc2 {[%emt 0:00:34]} 37. b4 {[%emt 0:00:15]} Ra2 {[%emt 0:00:24]} 38. Rd3 {[%emt 0:00:21]} e5 {[%emt 0:00:13]} 39. Rb3 {[%emt 0:00:38]} e4 {[%emt 0:00:16]} 40. b5 {[%emt 0:01:28]} Ra1+ {[%emt 0:04:59]} 41. Ke2 {[%emt 0:30:06]} Ra2+ {[%emt 0:30:06]} 42. Ke1 {[%emt 0:00:09]} Ra1+ {[%emt 0:00:28]} 43. Kd2 {[%emt 0:00:09]} Ra2+ {[%emt 0:00:05]} 44. Kc3 {[%emt 0:00:00]} e3 {[%emt 0:00:00]} 45. fxe3 {[%emt 0:00:00]} fxe3 {[%emt 0:00:00]} 46. Kb4 {[%emt 0:00:00]} e2 {[%emt 0:00:00]} 47. Re3 {[%emt 0:00:00]} Rb2+ {[%emt 0:00:00]} 48. Ka5 {[%emt 0:00:00]} Rd2 {[%emt 0:00:00]} 49. a4 {[%emt 0:00:00]} Kf5 {[%emt 0:00:00]} 50. Re7 {[%emt 0:00:00]} h5 {[%emt 0:00:00]} 51. Kb4 {[%emt 0:00:00]} Rd4+ {[%emt 0:00:00]} 52. Kc3 {[%emt 0:00:00]} Rxa4 {[%emt 0:00:00]} 53. Rxe2 {[%emt 0:00:00]} Kg4 {[%emt 0:00:00]} 54. b6 {[%emt 0:00:00]} Ra8 {[%emt 0:00:00]} 55. Kb4 {[%emt 0:00:00]} f5 {[%emt 0:00:00]} 56. Kb5 {[%emt 0:00:00]} h4 {[%emt 0:00:00]} 57. Re3 {[%emt 0:00:00]} f4 {[%emt 0:00:00]} 58. Rb3 {[%emt 0:00:00]} h3 {[%emt 0:00:00]} 59. gxh3+ {[%emt 0:00:25]} Kf5 {[%emt 0:00:00]} 60. b7 {[%emt 0:01:17]} 1-0

[Event "22nd Hoogeveen Open 2018"]
[Site "Hoogeveen"]
[Date "2018.10.21"]
[Round "2"]
[White "Ingebretsen, Jens E"]
[Black "Boersma, Jan"]
[Result "1-0"]
[ECO "B36"]
[WhiteElo "2160"]
[BlackElo "2047"]
[Annotator "NA"]
[PlyCount "119"]
[EventDate "2018.10.20"]
[EventType "swiss"]
[EventCountry "NED"]
[SourceTitle "playchess.com"]
[Source "ChessBase"]
[SourceQuality "1"]
[TimeControl "40/5400+30:1800+30"]

1. e4 {[%emt 0:00:08]} c5 {[%emt 0:00:00]} 2. Nf3 {[%emt 0:00:22]} g6 {[%emt 0:00:00]} 3. c4 {[%emt 0:00:08]} Nc6 {[%emt 0:00:06]} 4. d4 {[%emt 0:00:10]} cxd4 {[%emt 0:00:07]} 5. Nxd4 {[%emt 0:00:05]} Nf6 {[%emt 0:00:04]} 6. Nc3 {[%emt 0:00:07]} d6 {[%emt 0:00:07]} 7. Be2 {[%emt 0:00:08]} Nxd4 {[%emt 0:00:08]} 8. Qxd4 {[%emt 0:00:08]} Bg7 {[%emt 0:00:04]} 9. Be3 {[%emt 0:00:10]} Be6 {[%emt 0:00:07]} 10. O-O {[%emt 0:00:48]} O-O {[%emt 0:00:27]} 11. Qd2 {[%emt 0:00:36]} Qa5 {[%emt 0:09:16]} 12. Rab1 {[%emt 0:08:17]} Rfc8 {[%emt 0:00:52]} 13. b3 {[%emt 0:01:50]} a6 {[%emt 0:06:00]} 14. Rfc1 {[%emt 0:10:35] B36: Sicilian: Maroczy Bind: Gurgenidze System} Qd8 {[%emt 0:15:01]} 15. f3 {[%emt 0:01:50] LiveBook: 15 Games} Qf8 {[%emt 0:01:01]} 16. Bf1 $146 {[%emt 0:02:15]} ({Predecessor:} 16. a4 Nd7 17. Nd5 Bxd5 18. Qxd5 Rc7 19. a5 Bh6 20. Qd2 Bxe3+ 21. Qxe3 {0-1 (94) Schwarz,D (2216)-Perelshteyn,E (2601) Reno 2006}) 16... Nd7 {[%emt 0:02:31]} 17. Nd5 {[%emt 0:01:15]} Bxd5 {[%emt 0:01:13]} 18. exd5 {[%emt 0:00:18]} a5 {[%emt 0:00:36]} 19. Re1 {[%emt 0:03:06]} Rc7 {[%emt 0:16:51]} 20. Rbc1 {[%emt 0:06:43]} b6 {[%emt 0:02:05]} 21. Qf2 {[%emt 0:10:19]} Nc5 {[%emt 0:00:14]} 22. Rc2 {[%emt 0:06:21]} Rac8 {[%emt 0:03:08]} 23. Qe2 {[%emt 0:06:27]} Bf6 {[%emt 0:04:49]} 24. Rb1 {[%emt 0:02:40]} Qg7 {[%emt 0:03:10]} 25. Qd2 {[%emt 0:00:50]} h5 {[%emt 0:01:29]} 26. Kh1 {[%emt 0:05:36]} Kh7 $14 {[%emt 0:04:09]} 27. a3 {[%emt 0:03:06]} Nd7 {[%emt 0:05:10]} 28. Bd3 {[%emt 0:06:28]} Nc5 {[%emt 0:04:57]} 29. b4 {[%emt 0:02:18]} Na4 {[%emt 0:06:26]} 30. f4 {[%emt 0:04:45]} Kg8 {[%emt 0:04:09]} 31. f5 {[%emt 0:03:37]} g5 {[%emt 0:00:16]} 32. bxa5 {[%emt 0:00:15]} bxa5 {[%emt 0:00:40]} 33. Qxa5 {[%emt 0:02:03]} Nb2 {[%emt 0:04:34]} 34. Be2 {[%emt 0:03:47]} Nxc4 {[%emt 0:00:22]} 35. Qb4 {[%emt 0:01:44]} Nxe3 {[%emt 0:02:02]} 36. Rxc7 {[%emt 0:00:10]} Rxc7 {[%emt 0:00:06]} 37. Qb8+ {[%emt 0:00:06]} Kh7 {[%emt 0:00:04]} 38. Qxc7 {[%emt 0:00:09]} Nxd5 {[%emt 0:00:10]} 39. Qc4 {[%emt 0:02:51]} Nc3 {[%emt 0:00:31]} 40. Rb7 {[%emt 0:01:36]} d5 {[%emt 0:00:15]} 41. Qd3 {[%emt 0:30:28]} g4 {[%emt 0:07:57]} 42. Rc7 {[%emt 0:00:00]} Ne4 {[%emt 0:14:42]} 43. Qxd5 {[%emt 0:00:00]} Nf2+ {[%emt 0:00:14]} 44. Kg1 {[%emt 0:00:00]} Bd4 {[%emt 0:00:24]} 45. Kf1 {[%emt 0:00:00]} Bb6 {[%emt 0:04:06]} 46. Rc1 {[%emt 0:00:00]} Qf6 {[%emt 0:02:23]} 47. g3 {[%emt 0:00:00]} e6 {[%emt 0:00:35]} 48. Qb5 {[%emt 0:00:00]} Be3 {[%emt 0:05:30]} 49. Re1 {[%emt 0:00:00]} e5 {[%emt 0:03:14]} 50. Qd7 {[%emt 0:00:06]} Kg7 {[%emt 0:00:24]} 51. Bc4 {[%emt 0:01:16]} Bd4 {[%emt 0:00:21]} 52. Kg2 {[%emt 0:02:11]} Nh3 {[%emt 0:00:14]} 53. a4 {[%emt 0:01:42]} Ng5 {[%emt 0:00:25]} 54. a5 {[%emt 0:00:30]} h4 {[%emt 0:00:28]} 55. gxh4 {[%emt 0:01:06]} Nf3 {[%emt 0:00:10]} 56. Re4 {[%emt 0:00:43]} Nxh4+ {[%emt 0:00:38]} 57. Kh1 {[%emt 0:01:02]} Nxf5 {[%emt 0:01:14]} 58. Rxg4+ {[%emt 0:00:30]} Kh6 {[%emt 0:00:52]} 59. Qxf7 {[%emt 0:02:44]} Qc6+ {[%emt 0:00:05]} 60. Rg2 {[%emt 0:00:29]} 1-0